bitfinex/quotes_BTCUSD_20221001
["timestamp","ask_amount","ask_price","bid_price","bid_amount"]
[1664597896650,2.02069717,19405.0,19404.0,0.00042201]
[1664597897467,2.06073074,19405.0,19404.0,0.00035502]
[1664597898751,2.02073074,19405.0,19404.0,0.00035502]
[1664597898982,1.93992949,19405.0,19404.0,0.00035502]
[1664597899461,1.97992949,19405.0,19404.0,0.00035502]
[1664597900766,1.93992949,19405.0,19404.0,0.00035502]
[1664597901374,1.98000073,19405.0,19404.0,0.00035502]
[1664597901831,1.87901314,19405.0,19404.0,0.00035502]
[1664597902049,1.52144214,19405.0,19404.0,0.00035502]
[1664597902219,1.62244417,19405.0,19404.0,0.00035502]
[1664597902435,1.98001517,19405.0,19404.0,0.00035502]
[1664597902786,1.94001357,19405.0,19404.0,0.00035502]
[1664597902943,1.42468257,19405.0,19404.0,0.00035502]
[1664597903441,1.46668257,19405.0,19404.0,0.00035502]
[1664597904532,2.29436737,19405.0,19404.0,0.00035502]
[1664597904860,2.25236737,19405.0,19404.0,0.00035502]
[1664597905416,2.29236737,19405.0,19404.0,0.00035502]
[1664597906787,2.25236737,19405.0,19404.0,0.00035502]
[1664597907538,2.29236724,19405.0,19404.0,0.00035502]
[1664597907800,2.29236724,19405.0,19404.0,0.05482502]
[1664597908036,0.15100844,19405.0,19404.0,0.05482502]
[1664597908268,0.05,19405.0,19404.0,1.82412746]
[1664597908514,0.05,19405.0,19404.0,2.91991808]
[1664597908738,0.01,19405.0,19404.0,3.27675065]
[1664597908965,0.01,19405.0,19404.0,3.63827636]
[1664597909434,0.01,19405.0,19404.0,3.68827636]
[1664597909636,0.01,19405.0,19404.0,3.81727636]
[1664597910779,0.01,19405.0,19404.0,3.73827636]
[1664597911473,0.01,19405.0,19404.0,3.81727636]
[1664597912077,0.01,19405.0,19404.0,3.71727636]
[1664597912724,0.01,19405.0,19404.0,3.63827636]
[1664597913631,0.01,19405.0,19404.0,3.71727636]
[1664597914751,0.01,19405.0,19404.0,3.63827636]
[1664597915243,0.01,19405.0,19404.0,2.73640236]
[1664597915477,0.01,19405.0,19404.0,2.81540236]
[1664597915947,0.005,19405.0,19404.0,2.48172875]
[1664597916177,0.005,19405.0,19404.0,2.84408255]
[1664597917307,0.005,19405.0,19404.0,2.76508255]
[1664597917538,0.005,19405.0,19404.0,2.84408255]
[1664597918901,0.005,19405.0,19404.0,2.76508255]
[1664597919600,0.005,19405.0,19404.0,2.84408255]
[1664597920373,0.005,19405.0,19404.0,4.84408255]
[1664597920594,0.005,19405.0,19404.0,7.84408255]
[1664597920816,0.005,19405.0,19404.0,7.76508255]
[1664597921510,0.005,19405.0,19404.0,7.84408255]
[1664597922908,0.005,19405.0,19404.0,7.76508255]
[1664597923586,0.005,19405.0,19404.0,7.84408255]
[1664597924788,0.005,19405.0,19404.0,7.76508255]
[1664597925500,0.005,19405.0,19404.0,7.84408255]
[1664597926868,0.005,19405.0,19404.0,7.76508255]
[1664597927208,0.005,19405.0,19404.0,6.40751155]
[1664597927417,0.005,19405.0,19404.0,2.45272875]
[1664597927631,0.005,19405.0,19404.0,1.17415775]
[1664597927851,0.005,19405.0,19404.0,0.81263204]
[1664597928294,0.005,19405.0,19404.0,1.17020304]
[1664597928988,0.005,19405.0,19404.0,1.09120304]
[1664597929521,0.005,19405.0,19404.0,1.17020304]
[1664597930687,0.005,19405.0,19404.0,1.09120304]
[1664597931608,0.005,19405.0,19404.0,1.17020304]
[1664597931837,0.005,19405.0,19404.0,0.81263204]
[1664597932056,0.005,19405.0,19404.0,1.17020304]
[1664597932312,0.005,19405.0,19404.0,0.81263204]
[1664597932516,0.005,19405.0,19404.0,0.3009006]
[1664597932698,0.005,19405.0,19404.0,0.2219006]
[1664597933174,0.005,19405.0,19404.0,0.5794716]
[1664597933349,0.005,19405.0,19404.0,0.2219006]
[1664597933558,0.005,19405.0,19404.0,0.3009006]
[1664597934416,0.005,19405.0,19404.0,0.6584716]
[1664597934698,0.005,19405.0,19404.0,0.3009006]
[1664597934933,0.005,19405.0,19404.0,0.2219006]
[1664597935614,0.005,19405.0,19404.0,0.6584716]
[1664597935836,0.005,19405.0,19404.0,0.3009006]
[1664597935979,0.005,19405.0,19404.0,0.6584716]
[1664597936802,0.005,19405.0,19404.0,0.2219006]
[1664597937256,0.005,19405.0,19404.0,0.5794716]
[1664597937477,0.005,19405.0,19404.0,0.2219006]
[1664597937686,0.005,19405.0,19404.0,0.3009006]
[1664597938082,0.005,19405.0,19404.0,0.30078096]
[1664597938750,0.00489402,19405.0,19404.0,0.30078096]
[1664597938992,0.00489402,19405.0,19404.0,0.22178096]
[1664597939210,0.0366188,19405.0,19404.0,0.22178096]
[1664597939625,0.0366188,19405.0,19404.0,0.30078096]
[1664597940408,0.00489402,19405.0,19404.0,0.30078096]
[1664597940867,0.00489402,19405.0,19404.0,0.22178096]
[1664597941577,0.00489402,19405.0,19404.0,0.30078096]
[1664597942885,0.00489402,19405.0,19404.0,0.22178096]
[1664597943757,0.00489402,19405.0,19404.0,0.30078096]
[1664597944873,0.00489402,19405.0,19404.0,0.22178096]
[1664597945650,0.00489402,19405.0,19404.0,0.29978096]
[1664597946818,0.00489402,19405.0,19404.0,0.22178096]
[1664597947733,0.00489402,19405.0,19404.0,0.29978096]
[1664597947959,0.00489402,19405.0,19404.0,0.68744006]
[1664597948601,0.00489402,19405.0,19404.0,0.65735196]
[1664597948828,0.00489402,19405.0,19404.0,0.22178096]
[1664597949609,0.00489402,19405.0,19404.0,0.29978096]
[1664597950034,0.00489402,19405.0,19404.0,0.65735196]
[1664597950397,0.00489402,19405.0,19404.0,0.29978096]
[1664597950921,0.00489402,19405.0,19404.0,0.57935196]
[1664597951138,0.00489402,19405.0,19404.0,0.22178096]
[1664597951364,0.00489402,19405.0,19404.0,0.57935196]
[1664597951594,0.00489402,19405.0,19404.0,0.22178096]
[1664597951807,0.00489402,19405.0,19404.0,0.29978096]
[1664597952955,0.00489402,19405.0,19404.0,0.57935196]
[1664597953200,0.00489402,19405.0,19404.0,0.22178096]
[1664597953652,0.00489402,19405.0,19404.0,0.29978096]
[1664597954877,0.00489402,19405.0,19404.0,0.22178096]
[1664597955570,0.00489402,19405.0,19404.0,0.29978096]
[1664597956945,0.00489402,19405.0,19404.0,0.22178096]
[1664597957805,0.00489402,19405.0,19404.0,0.29978096]
[1664597958887,0.00489402,19405.0,19404.0,0.22178096]
[1664597959110,0.00489402,19405.0,19404.0,0.22168641]
[1664597959703,0.36246502,19405.0,19404.0,0.29968641]
[1664597959926,0.04114052,19405.0,19404.0,0.29968641]
[1664597960483,0.35349432,19405.0,19404.0,0.29968641]
[1664597960950,0.35349432,19405.0,19404.0,0.22168641]
[1664597961643,0.38349432,19405.0,19404.0,0.29768641]
[1664597961868,0.03489402,19405.0,19404.0,0.29768641]
[1664597962977,0.00489402,19405.0,19404.0,0.22168641]
[1664597963710,0.03489402,19405.0,19404.0,0.29768641]
[1664597965046,0.00489402,19405.0,19404.0,0.22168641]
[1664597965737,0.02789402,19405.0,19404.0,0.29668641]
[1664597966990,0.00489402,19405.0,19404.0,0.22168641]
[1664597967621,0.02789402,19405.0,19404.0,0.29668641]
[1664597968942,0.00489402,19405.0,19404.0,0.22168641]
[1664597969414,0.36246502,19405.0,19404.0,0.22168641]
[1664597969640,0.00489402,19405.0,19404.0,0.22168641]
[1664597969864,0.38546502,19405.0,19404.0,0.29668641]
[1664597970057,0.02789402,19405.0,19404.0,0.29668641]
[1664597970512,0.34024782,19405.0,19404.0,0.29668641]
[1664597970996,0.00489402,19405.0,19404.0,0.22168641]
[1664597971204,0.31724782,19405.0,19404.0,0.22168641]
[1664597971428,0.00489402,19405.0,19404.0,0.22168641]
[1664597971863,0.70481882,19405.0,19404.0,0.29768641]
[1664597972593,0.7452222,19405.0,19404.0,0.07614083]
[1664597972817,0.3876512,19405.0,19404.0,0.07614083]
[1664597972975,0.3576512,19405.0,19404.0,0.00014083]
[1664597973598,0.0452974,19405.0,19404.0,0.00014083]
[1664597973845,0.3876512,19405.0,19404.0,0.07614083]
[1664597974022,0.0752974,19405.0,19404.0,0.07614083]
[1664597974655,0.4328684,19405.0,19404.0,0.07614083]
[1664597975103,0.0452974,19405.0,19404.0,0.00014083]
[1664597975327,0.3576512,19405.0,19404.0,0.00014083]
[1664597975559,0.0452974,19405.0,19404.0,0.00014083]
[1664597975777,0.00489402,19405.0,19404.0,0.07714083]
[1664597976992,0.00489402,19405.0,19404.0,0.00014083]
[1664597977635,0.03489402,19405.0,19404.0,0.07614083]
[1664597978091,0.4328684,19405.0,19404.0,0.07614083]
[1664597978306,0.0752974,19405.0,19404.0,0.07614083]
[1664597978966,0.0452974,19405.0,19404.0,0.00014083]
[1664597979652,0.0452974,19405.0,19404.0,0.07714083]
[1664597980602,0.00489402,19405.0,19404.0,0.07708074]
[1664597980815,0.0452974,19405.0,19404.0,0.07708074]
[1664597981055,0.0452974,19405.0,19404.0,8.074e-05]
[1664597981966,0.0452974,19405.0,19404.0,0.07708074]
[1664597982159,0.3576512,19405.0,19404.0,0.07708074]
[1664597982403,0.0452974,19405.0,19404.0,0.07708074]
[1664597982965,0.0452974,19405.0,19404.0,8.074e-05]
[1664597983850,0.8440542,19405.0,19404.0,0.07708074]
[1664597984062,0.90465926,19405.0,19404.0,0.07708074]
[1664597984293,1.09201284,19406.0,19404.0,0.43465174]
[1664597984509,0.16924238,19405.0,19404.0,0.07708074]
[1664597985141,0.16924238,19405.0,19404.0,8.074e-05]
[1664597985309,0.52681338,19405.0,19404.0,8.074e-05]
[1664597985770,0.52681338,19405.0,19404.0,0.07708074]
[1664597985950,0.16924238,19405.0,19404.0,0.07708074]
[1664597986406,0.17924238,19405.0,19404.0,0.07708074]
[1664597987113,0.17924238,19405.0,19404.0,8.074e-05]
[1664597987913,0.16924238,19405.0,19404.0,0.07708074]
[1664597988767,1.7077427,19405.0,19404.0,0.07708074]
[1664597988983,1.80267736,19405.0,19404.0,0.07708074]
[1664597989125,1.80267791,19405.0,19404.0,8.074e-05]
[1664597989585,1.96043791,19405.0,19404.0,8.074e-05]
[1664597989803,2.33000891,19405.0,19404.0,0.07408074]
[1664597991108,2.33000891,19405.0,19404.0,8.074e-05]
[1664597991109,2.31800891,19405.0,19404.0,8.074e-05]
[1664597991421,1.86551232,19405.0,19404.0,8.074e-05]
[1664597991630,2.31801059,19405.0,19404.0,8.074e-05]
[1664597991865,2.33401059,19405.0,19404.0,0.07608074]
[1664597992666,2.23907306,19405.0,19404.0,0.07608074]
[1664597992981,2.27946894,19405.0,19404.0,0.07608074]
[1664597993161,2.16246864,19405.0,19404.0,8.074e-05]
[1664597993552,2.22307337,19405.0,19404.0,8.074e-05]
[1664597993769,2.23907337,19405.0,19404.0,0.07608074]
[1664597994675,2.17846864,19405.0,19404.0,0.07608074]
[1664597994941,2.2390735,19405.0,19404.0,0.07608074]
[1664597995120,2.2230735,19405.0,19404.0,8.074e-05]
[1664597995947,2.33452002,19405.0,19404.0,0.07608074]
[1664597996129,2.93452002,19405.0,19404.0,0.07608074]
[1664597996804,1.97694902,19405.0,19404.0,0.07608074]
[1664597997008,2.33452002,19405.0,19404.0,8.074e-05]
[1664597997231,2.31852002,19405.0,19404.0,8.074e-05]
[1664597997809,2.17846864,19405.0,19404.0,0.07608074]
[1664597999025,2.23907346,19405.0,19404.0,0.07608074]
[1664597999251,2.16246864,19405.0,19404.0,8.074e-05]
[1664597999708,2.22307363,19405.0,19404.0,8.074e-05]
[1664597999924,2.23007363,19405.0,19404.0,0.07008074]
[1664598000140,2.14927169,19405.0,19404.0,0.07008074]
[1664598000345,2.18967623,19405.0,19404.0,0.07008074]
[1664598000556,2.23007363,19405.0,19404.0,0.07008074]
[1664598001227,2.23007363,19405.0,19404.0,8.074e-05]
[1664598001228,2.22307363,19405.0,19404.0,8.074e-05]
[1664598001820,1.87250263,19405.0,19404.0,0.07008074]
[1664598002036,2.23007363,19405.0,19404.0,0.07008074]
[1664598003138,2.23007363,19405.0,19404.0,8.074e-05]
[1664598003139,2.91879458,19405.0,19404.0,8.074e-05]
[1664598003352,2.22307036,19405.0,19404.0,8.074e-05]
[1664598003749,2.82307036,19405.0,19404.0,8.074e-05]
[1664598004040,2.16946864,19405.0,19404.0,0.07008074]
[1664598004274,2.2300694,19405.0,19404.0,0.07008074]
[1664598005145,2.2300694,19405.0,19404.0,8.074e-05]
[1664598005146,2.2230694,19405.0,19404.0,8.074e-05]
[1664598006058,2.2300694,19405.0,19404.0,0.07008074]
[1664598006498,1.79169646,19405.0,19404.0,0.07000739]
[1664598006808,2.18966418,19405.0,19404.0,0.07000739]
[1664598007021,2.2300694,19405.0,19404.0,0.07000739]
[1664598007248,2.14226746,19405.0,19404.0,7.39e-06]
[1664598007953,2.14226746,19405.0,19404.0,0.07000739]
[1664598008174,2.2300694,19405.0,19404.0,0.07000739]
[1664598009051,2.32592338,19405.0,19404.0,0.07000739]
[1664598009270,5.65563229,19405.0,19404.0,7.39e-06]
[1664598009716,6.19803229,19405.0,19404.0,7.39e-06]
[1664598009946,3.56273618,19405.0,19404.0,0.07100739]
[1664598010388,2.90728174,19405.0,19404.0,0.07100739]
[1664598010614,3.40628144,19405.0,19404.0,0.07100739]
[1664598011090,3.56273841,19405.0,19404.0,0.07100739]
[1664598011306,3.56273841,19405.0,19404.0,7.39e-06]
[1664598011521,2.80628144,19405.0,19404.0,7.39e-06]
[1664598011761,2.96274245,19405.0,19404.0,7.39e-06]
[1664598011971,2.86828144,19405.0,19404.0,7.39e-06]
[1664598012276,3.02474048,19405.0,19404.0,7.39e-06]
[1664598012792,2.96928174,19405.0,19404.0,7.39e-06]
[1664598013152,2.96207918,19405.0,19404.0,7.39e-06]
[1664598013783,2.96207948,19405.0,19404.0,7.39e-06]
[1664598013999,3.62407948,19405.0,19404.0,7.39e-06]
[1664598014510,2.86828144,19405.0,19404.0,7.39e-06]
[1664598014971,2.22036634,19405.0,19404.0,7.39e-06]
[1664598015201,2.78607609,19405.0,19404.0,7.39e-06]
[1664598015431,2.51593711,19405.0,19404.0,7.39e-06]
[1664598015662,2.86687803,19405.0,19404.0,7.39e-06]
[1664598016111,2.84107609,19405.0,19404.0,7.39e-06]
[1664598016614,2.8814731,19405.0,19404.0,7.39e-06]
[1664598017061,2.84107609,19405.0,19404.0,7.39e-06]
[1664598017292,2.8264743,19405.0,19404.0,7.39e-06]
[1664598017520,2.4689033,19405.0,19404.0,7.39e-06]
[1664598017739,2.51593804,19405.0,19404.0,7.39e-06]
[1664598017959,2.84807609,19405.0,19404.0,7.39e-06]
[1664598018477,2.92887803,19405.0,19404.0,7.39e-06]
[1664598019268,2.86687803,19405.0,19404.0,7.39e-06]
[1664598019909,2.92887803,19405.0,19404.0,7.39e-06]
[1664598020646,3.02463165,19405.0,19404.0,7.39e-06]
[1664598021232,2.99750701,19405.0,19404.0,7.39e-06]
[1664598022095,3.0131571,19405.0,19404.0,7.39e-06]
[1664598022317,3.06849829,19405.0,19404.0,7.39e-06]
[1664598023066,2.30463174,19405.0,19404.0,7.39e-06]
[1664598023278,2.23363174,19405.0,19404.0,7.39e-06]
[1664598023680,2.59120274,19405.0,19404.0,7.39e-06]
[1664598023902,2.65320274,19405.0,19404.0,7.39e-06]
[1664598024343,2.963739,19405.0,19404.0,7.39e-06]
[1664598024566,2.65320274,19405.0,19404.0,7.39e-06]
[1664598025305,2.59994422,19405.0,19404.0,7.39e-06]
[1664598025529,2.91048048,19405.0,19404.0,7.39e-06]
[1664598026144,2.97248048,19405.0,19404.0,7.39e-06]
[1664598026986,2.91189828,19405.0,19404.0,7.39e-06]
[1664598027406,3.00658931,19405.0,19404.0,7.39e-06]
[1664598027630,2.95089858,19405.0,19404.0,7.39e-06]
[1664598027851,3.00719586,19405.0,19404.0,7.39e-06]
[1664598028075,3.06919586,19405.0,19404.0,7.39e-06]
[1664598028764,0.10482515,19404.0,19403.0,0.0011]
[1664598028991,1.07510889,19404.0,19403.0,0.0011]
[1664598029188,1.11551831,19404.0,19403.0,0.0011]
[1664598029480,1.13612917,19404.0,19403.0,0.0011]
[1664598029945,1.12652482,19404.0,19403.0,0.0011]
[1664598030169,1.12652482,19404.0,19403.0,0.0781]
[1664598031308,1.12652482,19404.0,19403.0,0.0011]
[1664598031776,1.25526682,19404.0,19400.0,0.38754817]
[1664598032037,0.05,19402.0,19400.0,0.00096117]
[1664598032266,0.51173144,19402.0,19400.0,0.00096117]
[1664598032505,0.64058344,19402.0,19400.0,0.00096117]
[1664598033972,0.68097909,19402.0,19400.0,0.07996117]
[1664598034187,0.64932421,19402.0,19400.0,0.07996117]
[1664598034401,0.68971986,19402.0,19400.0,0.07996117]
[1664598034664,0.64932421,19402.0,19400.0,0.07996117]
[1664598035092,0.1014128,19401.0,19400.0,0.07996117]
[1664598035325,0.1014128,19401.0,19400.0,0.00096117]
[1664598036145,0.1014128,19401.0,19400.0,0.07996117]
[1664598037414,0.1014128,19401.0,19400.0,0.00096117]
[1664598037605,0.1014128,19401.0,19400.0,0.35853217]
[1664598037829,0.1014128,19401.0,19400.0,0.09096117]
[1664598038073,0.1014128,19401.0,19400.0,0.16996117]
[1664598039043,0.1014128,19401.0,19400.0,0.07996117]
[1664598039837,0.1014128,19401.0,19400.0,0.00096117]
[1664598040058,0.1014128,19401.0,19400.0,0.16996117]
[1664598040253,0.1014128,19401.0,19400.0,0.29882617]
[1664598042710,0.4589838,19401.0,19400.0,0.07996117]
[1664598043078,0.1014128,19401.0,19400.0,0.07996117]
[1664598043319,0.1014128,19401.0,19400.0,0.00096117]
[1664598043994,0.1304128,19401.0,19400.0,0.07796117]
[1664598045331,0.1014128,19401.0,19400.0,0.00096117]
[1664598046167,0.79852006,19401.0,19400.0,0.07796117]
[1664598046385,0.44094906,19401.0,19400.0,0.07796117]
[1664598046598,0.1304128,19401.0,19400.0,0.07796117]
[1664598046834,0.79852006,19401.0,19400.0,0.07796117]
[1664598047328,0.4879838,19401.0,19400.0,0.07796117]
[1664598047522,0.1014128,19401.0,19400.0,0.00096117]
[1664598048194,0.1314128,19401.0,19400.0,0.07796117]
[1664598048452,0.44194906,19401.0,19400.0,0.07796117]
[1664598048677,0.1314128,19401.0,19400.0,0.07796117]
[1664598049454,0.1014128,19401.0,19400.0,0.00096117]
[1664598050122,0.1274128,19401.0,19400.0,0.07796117]
[1664598051462,0.1014128,19401.0,19400.0,0.00096117]
[1664598052094,0.1204128,19401.0,19400.0,0.07596117]
[1664598053362,0.1014128,19401.0,19400.0,0.00096117]
[1664598054339,0.1204128,19401.0,19400.0,0.07596117]
[1664598054561,0.1204128,19401.0,19400.0,0.07584536]
[1664598055553,0.1014128,19401.0,19400.0,0.00084536]
[1664598056120,0.1204128,19401.0,19400.0,0.07584536]
[1664598056716,0.4779838,19401.0,19400.0,0.07584536]
[1664598056934,0.1204128,19401.0,19400.0,0.07584536]
[1664598057491,0.1014128,19401.0,19400.0,0.00084536]
[1664598057912,0.4589838,19401.0,19400.0,0.00084536]
[1664598058063,0.1014128,19401.0,19400.0,0.00084536]
[1664598058303,0.1204128,19401.0,19400.0,0.90142637]
[1664598058584,0.1204128,19401.0,19400.0,0.54385537]
[1664598059015,0.1204128,19401.0,19400.0,0.53077373]
[1664598059157,0.1204128,19401.0,19400.0,0.07584536]
[1664598059158,0.4779838,19401.0,19400.0,0.07584536]
[1664598059595,0.4779838,19401.0,19400.0,0.00084536]
[1664598059596,0.1014128,19401.0,19400.0,0.00084536]
[1664598059857,0.1014128,19401.0,19400.0,0.09084536]
[1664598060086,0.1014128,19401.0,19400.0,0.65528136]
[1664598060322,0.1014128,19401.0,19400.0,0.07884536]
[1664598061445,0.1014128,19401.0,19400.0,0.00084536]
[1664598061900,0.1014128,19401.0,19400.0,0.09084536]
[1664598062114,0.1014128,19401.0,19400.0,0.07884536]
[1664598062368,0.1014128,19401.0,19400.0,1.10771036]
[1664598062602,0.1014128,19401.0,19400.0,1.6207837]
[1664598062817,0.1014128,19401.0,19400.0,1.2632127]
[1664598063249,0.1014128,19401.0,19400.0,1.1852127]
[1664598063717,0.1014128,19401.0,19400.0,1.4429437]
[1664598063948,0.1014128,19401.0,19400.0,1.8505147]
[1664598064191,0.1014128,19401.0,19400.0,1.9295147]
[1664598064428,0.1014128,19401.0,19400.0,3.39038275]
[1664598064658,0.1014128,19401.0,19400.0,2.93281175]
[1664598065166,0.1014128,19401.0,19400.0,3.39038275]
[1664598065382,0.1014128,19401.0,19400.0,3.31138275]
[1664598065603,0.1014128,19401.0,19400.0,3.21138275]
[1664598066067,0.1014128,19401.0,19400.0,3.39038275]
[1664598066511,0.1014128,19401.0,19400.0,2.90670914]
[1664598067467,0.1014128,19401.0,19400.0,2.82770914]
[1664598067897,0.1014128,19401.0,19400.0,2.92770914]
[1664598068137,0.1014128,19401.0,19400.0,3.00670914]
[1664598068372,0.1014128,19401.0,19400.0,2.90670914]
[1664598069038,0.1014128,19401.0,19400.0,4.22333522]
[1664598069723,0.1014128,19401.0,19400.0,4.17525936]
[1664598070194,0.1014128,19401.0,19400.0,4.25425936]
[1664598071375,0.1014128,19401.0,19400.0,4.17525936]
[1664598071600,0.1014128,19401.0,19400.0,4.14433522]
[1664598072066,0.1014128,19401.0,19400.0,4.22333522]
[1664598072520,0.1014128,19401.0,19400.0,3.83966161]
[1664598073893,0.1014128,19401.0,19400.0,3.76066161]
[1664598074117,0.1014128,19401.0,19400.0,2.78209061]
[1664598074341,0.1014128,19401.0,19400.0,2.62658827]
[1664598074569,0.1014128,19401.0,19400.0,2.98415927]
[1664598075529,0.1014128,19401.0,19400.0,2.90515927]
[1664598076196,0.1014128,19401.0,19400.0,2.98415927]
[1664598077348,0.1014128,19401.0,19400.0,2.90515927]
[1664598078315,0.1014128,19401.0,19400.0,2.98415927]
[1664598079532,0.1014128,19401.0,19400.0,2.90515927]
[1664598080195,0.1014128,19401.0,19400.0,2.98415927]
[1664598080879,0.1014128,19401.0,19400.0,3.35883834]
[1664598081118,0.1014128,19401.0,19400.0,3.40883834]
[1664598081360,0.1014128,19401.0,19400.0,3.35883834]
[1664598081603,0.1014128,19401.0,19400.0,3.27983834]
[1664598082048,0.1014128,19401.0,19400.0,3.32983834]
[1664598082269,0.1014128,19401.0,19400.0,3.40883834]
[1664598083476,0.1014128,19401.0,19400.0,3.32983834]
[1664598084128,0.1014128,19401.0,19400.0,3.37983834]
[1664598084361,0.1014128,19401.0,19400.0,3.97983834]
[1664598084584,0.1014128,19401.0,19400.0,3.37983834]
[1664598085484,0.1014128,19401.0,19400.0,3.32983834]
[1664598086236,0.1014128,19401.0,19400.0,3.97983834]
[1664598086404,0.1014128,19401.0,19400.0,3.37983834]
[1664598086638,0.1014128,19401.0,19400.0,3.97983834]
[1664598087470,0.1014128,19401.0,19400.0,3.92983834]
[1664598087924,0.0235528,19401.0,19400.0,6.28784821]
[1664598088158,0.0235528,19401.0,19400.0,9.82790695]
[1664598088615,1e-08,19401.0,19400.0,9.82790695]
[1664598088838,1e-08,19401.0,19400.0,9.79698281]
[1664598089983,1e-08,19401.0,19400.0,9.74798281]
[1664598090216,1e-08,19401.0,19400.0,9.75924821]
[1664598091173,1e-08,19401.0,19400.0,9.75184821]
[1664598091394,1e-08,19401.0,19400.0,9.3041746]
[1664598092311,1e-08,19401.0,19400.0,8.05763834]
[1664598092546,1e-08,19401.0,19400.0,3.70360244]
[1664598093026,1e-08,19401.0,19400.0,3.76740244]
[1664598093485,1e-08,19401.0,19400.0,3.70340244]
[1664598093925,1e-08,19401.0,19400.0,4.30340244]
[1664598094421,1e-08,19401.0,19400.0,4.34640244]
[1664598095578,1e-08,19401.0,19400.0,4.30340244]
[1664598096238,1e-08,19401.0,19400.0,4.35840244]
[1664598097553,1e-08,19401.0,19400.0,4.30340244]
[1664598098289,1e-08,19401.0,19400.0,4.35840244]
[1664598099538,1e-08,19401.0,19400.0,4.30340244]
[1664598100491,1e-08,19401.0,19400.0,4.35840244]
[1664598101510,1e-08,19401.0,19400.0,4.30340244]
[1664598102396,1e-08,19401.0,19400.0,4.35840244]
[1664598103760,1e-08,19401.0,19400.0,4.30340244]
[1664598104368,1e-08,19401.0,19400.0,4.35840244]
[1664598105523,1e-08,19401.0,19400.0,4.30340244]
[1664598106429,1e-08,19401.0,19400.0,4.36740244]
[1664598107723,1e-08,19401.0,19400.0,4.30340244]
[1664598108425,1e-08,19401.0,19400.0,4.35140244]
[1664598109084,0.00874077,19402.0,19401.0,0.45708944]
[1664598109302,0.00874077,19402.0,19401.0,2.40055036]
[1664598110036,0.00874077,19402.0,19401.0,2.71031446]
[1664598110475,0.00874077,19402.0,19401.0,2.76131446]
[1664598110697,0.00874077,19402.0,19401.0,2.45155036]
[1664598111148,0.00874077,19402.0,19401.0,2.76131446]
[1664598111372,0.00874077,19402.0,19401.0,2.45155036]
[1664598111602,0.00874077,19402.0,19401.0,1.80055036]
[1664598112544,0.00874077,19402.0,19401.0,1.83955036]
[1664598113633,0.00874077,19402.0,19401.0,1.80055036]
[1664598114523,0.00874077,19402.0,19401.0,1.85155036]
[1664598114865,0.00874077,19402.0,19401.0,2.45155036]
[1664598115089,0.00874077,19402.0,19401.0,1.85155036]
[1664598115743,0.00874077,19402.0,19401.0,1.80055036]
[1664598116406,0.00874077,19402.0,19401.0,1.85155036]
[1664598117778,0.00874077,19402.0,19401.0,1.80055036]
[1664598118422,0.00874077,19402.0,19401.0,1.86055036]
[1664598118678,0.00874077,19402.0,19401.0,2.46055036]
[1664598118902,0.00874077,19402.0,19401.0,1.86055036]
[1664598119735,0.00874077,19402.0,19401.0,1.80055036]
[1664598120543,0.00874077,19402.0,19401.0,1.86055036]
[1664598121810,0.00874077,19402.0,19401.0,1.80055036]
[1664598122037,0.00874077,19402.0,19401.0,2.71031446]
[1664598122267,0.2135801,19402.0,19401.0,1.12715188]
[1664598122466,0.00874077,19402.0,19401.0,1.18715188]
[1664598123575,0.00874077,19402.0,19401.0,1.12715188]
[1664598124441,0.00874077,19402.0,19401.0,1.16215188]
[1664598124719,0.00874077,19402.0,19401.0,1.56276405]
[1664598125727,0.00874077,19402.0,19401.0,1.52776405]
[1664598125942,0.00874077,19402.0,19401.0,1.12715188]
[1664598126409,0.00874077,19402.0,19401.0,0.76958088]
[1664598126640,0.00874077,19402.0,19401.0,1.16615188]
[1664598127791,0.00874077,19402.0,19401.0,1.72715188]
[1664598128004,0.00874077,19402.0,19401.0,2.03691598]
[1664598128218,0.00874077,19402.0,19401.0,1.12715188]
[1664598128354,0.00874077,19402.0,19401.0,1.52426405]
[1664598128737,0.00874077,19402.0,19401.0,1.56826405]
[1664598129487,0.00874077,19402.0,19401.0,0.81358088]
[1664598129725,0.00874077,19402.0,19401.0,1.12715188]
[1664598130622,0.00874077,19402.0,19401.0,1.16215188]
[1664598131295,0.00874077,19402.0,19401.0,1.21215188]
[1664598131519,0.0086688,19402.0,19401.0,1.60776405]
[1664598131977,0.0086688,19402.0,19401.0,1.57276405]
[1664598132432,0.0086688,19402.0,19401.0,1.88252815]
[1664598132685,0.0086688,19402.0,19401.0,2.52152815]
[1664598132895,0.0086688,19402.0,19401.0,1.61176405]
[1664598134053,0.0086688,19402.0,19401.0,1.57276405]
[1664598134288,0.0086688,19402.0,19401.0,1.12715188]
[1664598134513,0.0086688,19402.0,19401.0,1.21615188]
[1664598135703,0.0086688,19402.0,19401.0,1.21604019]
[1664598135935,0.0086688,19402.0,19401.0,1.17704019]
[1664598136160,0.0086688,19402.0,19401.0,1.77704019]
[1664598136622,0.0086688,19402.0,19401.0,2.28507026]
[1664598137131,0.0086688,19402.0,19401.0,1.16615188]
[1664598137359,0.0086688,19402.0,19401.0,0.80858088]
[1664598137585,0.0086688,19402.0,19401.0,1.16615188]
[1664598137817,0.0086688,19402.0,19401.0,1.12715188]
[1664598138251,0.0086688,19402.0,19401.0,0.76958088]
[1664598138478,0.0086688,19402.0,19401.0,1.16615188]
[1664598139657,0.0086688,19402.0,19401.0,0.80858088]
[1664598139886,0.0086688,19402.0,19401.0,0.51182569]
[1664598140110,0.0086688,19402.0,19401.0,0.86939669]
[1664598140585,0.0086688,19402.0,19401.0,1.25546474]
[1664598140832,0.0086688,19402.0,19401.0,0.95339669]
[1664598141059,0.0086688,19402.0,19401.0,0.90339669]
[1664598141739,0.0086688,19402.0,19401.0,0.96939669]
[1664598142650,0.0086688,19402.0,19401.0,1.00339669]
[1664598142879,0.0086688,19402.0,19401.0,1.35886474]
[1664598143557,0.0086688,19402.0,19401.0,1.00339669]
[1664598143793,0.0086688,19402.0,19401.0,0.96939669]
[1664598144559,0.0086688,19402.0,19401.0,0.64582569]
[1664598145234,0.0086688,19402.0,19401.0,1.00339669]
[1664598145878,0.0086688,19402.0,19401.0,0.96939669]
[1664598146509,0.0086688,19402.0,19401.0,1.00339669]
[1664598148376,0.0086688,19402.0,19401.0,0.96939669]
[1664598148630,0.0086688,19402.0,19401.0,1.00839669]
[1664598148858,0.0086688,19402.0,19401.0,0.60082569]
[1664598149078,0.0086688,19402.0,19401.0,0.95839669]
[1664598149337,0.0086688,19402.0,19401.0,1.00839669]
[1664598149780,0.0086688,19402.0,19401.0,0.96939669]
[1664598150675,0.0086688,19402.0,19401.0,0.95839669]
[1664598151559,0.00741539,19403.0,19401.0,0.95839669]
[1664598151813,0.31717949,19403.0,19402.0,0.357571]
[1664598152029,0.00741539,19403.0,19402.0,0.357571]
[1664598152258,0.00741539,19403.0,19401.0,1.41383469]
[1664598152463,0.05,19402.0,19401.0,1.41383469]
[1664598152733,0.05,19402.0,19401.0,1.77140569]
[1664598152949,0.05,19402.0,19401.0,1.41383469]